bitfinex/quotes_SOLUSD_20251119
["timestamp","ask_amount","ask_price","bid_price","bid_amount"]
[1763564389538,0.72,137.52,137.48,6.13776412]
[1763564389744,9.78882769,137.51,137.49,6.13776412]
[1763564390286,9.78882769,137.51,137.47,1.76]
[1763564390287,0.87,137.54,137.5,6.13776412]
[1763564390445,0.87,137.54,137.52,6.13776412]
[1763564390647,0.67,137.53,137.52,6.13776412]
[1763564391375,6.10280277,137.53,137.52,6.13776412]
[1763564391883,6.10280277,137.53,137.5,1.76]
[1763564391884,6.10280277,137.53,137.51,24.25872412]
[1763564392191,0.67,137.53,137.51,24.25872412]
[1763564393255,5.43685752,137.52,137.51,24.25872412]
[1763564393656,0.2,137.54,137.51,31.5309225]
[1763564393880,0.67,137.53,137.48,7.27359167]
[1763564394091,0.67,137.53,137.52,6.13776412]
[1763564394295,6.10635295,137.53,137.52,6.13776412]
[1763564394655,6.10635295,137.53,137.46,18.18623591]
[1763564394656,12.24411707,137.53,137.44,0.22]
[1763564394975,0.2,137.54,137.48,18.12096]
[1763564394976,6.10635295,137.52,137.48,18.12096]
[1763564395154,0.67,137.52,137.51,6.13776412]
[1763564395353,6.1075998,137.52,137.51,6.13776412]
[1763564395563,5.4375998,137.52,137.51,6.13776412]
[1763564395962,6.1075998,137.52,137.5,24.25872412]
[1763564396161,6.1075998,137.51,137.5,18.12096]
[1763564396963,9.78882769,137.5,137.47,6.13776412]
[1763564397157,5.4375998,137.49,137.47,6.13776412]
[1763564397477,0.67,137.49,137.47,6.13776412]
[1763564397681,0.67,137.48,137.46,7.89776412]
[1763564397880,6.10829763,137.5,137.47,6.13776412]
[1763564398071,0.67,137.5,137.48,6.13776412]
[1763564398665,0.67,137.5,137.47,6.13776412]
[1763564399001,5.43818311,137.49,137.47,6.13776412]
[1763564399239,0.67,137.5,137.47,6.13776412]
[1763564399685,9.78882769,137.51,137.49,6.13776412]
[1763564399893,0.67,137.52,137.49,6.13776412]
[1763564400087,0.67,137.51,137.49,6.13776412]
[1763564400284,5.435996,137.53,137.5,6.35776412]
[1763564400584,0.87,137.54,137.52,6.13776412]
[1763564400788,0.2,137.54,137.53,10.23464416]
[1763564401810,6.30572246,137.54,137.49,18.12096]
[1763564402031,6.10572246,137.53,137.5,11.99464416]
[1763564402319,0.67,137.53,137.5,19.88096]
[1763564402485,16.34100078,137.52,137.43,0.22]
[1763564402792,16.34100078,137.52,137.47,10.23464416]
[1763564402793,25.45982847,137.51,137.47,10.23464416]
[1763564403123,10.23464416,137.49,137.44,10.23464416]
[1763564403333,10.23464416,137.46,137.37,0.22]
[1763564403495,10.23464416,137.43,137.38,10.23464416]
[1763564403815,5.43635662,137.45,137.4,10.23464416]
[1763564403816,5.43635662,137.42,137.4,10.23464416]
[1763564404029,9.78882769,137.44,137.4,10.23464416]
[1763564404188,0.67,137.47,137.43,10.23464416]
[1763564404385,15.22588085,137.46,137.44,10.23464416]
[1763564404585,5.43705316,137.45,137.44,10.23464416]
[1763564404832,5.43705316,137.45,137.41,1.76]
[1763564405108,9.78882769,137.46,137.42,28.35560416]
[1763564405336,5.43512258,137.45,137.42,28.35560416]
[1763564405490,9.78882769,137.46,137.43,10.23464416]
[1763564405491,0.67,137.46,137.43,10.23464416]
[1763564405686,6.10315969,137.45,137.4,10.23464416]
[1763564405885,5.43315969,137.44,137.42,10.23464416]
[1763564406106,0.67,137.45,137.43,10.23464416]
[1763564406307,5.43375742,137.44,137.43,10.23464416]
[1763564406517,5.43188808,137.44,137.43,10.23464416]
[1763564406721,0.67,137.45,137.42,11.99464416]
[1763564407033,0.67,137.45,137.43,10.23464416]
[1763564407190,0.67,137.45,137.42,11.99464416]
[1763564407522,10.45882769,137.47,137.43,10.23464416]
[1763564407825,6.10047052,137.46,137.42,30.11560416]
[1763564407997,5.43047052,137.45,137.42,1.76]
[1763564408193,5.4309522,137.44,137.42,11.99464416]
[1763564408425,5.4309522,137.44,137.42,1.76]
[1763564408426,0.67,137.44,137.42,1.76]
[1763564408627,0.67,137.43,137.41,28.35560416]
[1763564408929,0.67,137.46,137.42,10.23464416]
[1763564409107,5.42915167,137.45,137.41,11.99464416]
[1763564409316,0.67,137.46,137.43,10.23464416]
[1763564409510,6.09833584,137.45,137.43,10.23464416]
[1763564409698,0.67,137.45,137.42,10.23464416]
[1763564410195,20.02347185,137.47,137.42,10.23464416]
[1763564410397,5.42842355,137.46,137.42,0.22]
[1763564410598,0.67,137.49,137.45,10.23464416]
[1763564410919,5.42664195,137.48,137.46,1.76]
[1763564411220,0.67,137.49,137.46,11.99464416]
[1763564411422,5.42655615,137.48,137.47,10.23464416]
[1763564411601,10.45882769,137.51,137.47,10.23464416]
[1763564411796,1.96,137.54,137.48,10.23464416]
[1763564411797,10.23464416,137.53,137.48,10.23464416]
[1763564412017,0.67,137.51,137.49,1.76]
[1763564412210,10.23464416,137.53,137.49,1.76]
[1763564412409,16.33001791,137.52,137.48,10.23464416]
[1763564412725,0.87,137.54,137.51,10.23464416]
[1763564413229,0.67,137.53,137.51,1.76]
[1763564413730,0.2,137.54,137.51,11.99464416]
[1763564414048,0.87,137.54,137.51,1.76]
[1763564414205,5.42450863,137.53,137.5,19.88096]
[1763564414404,0.67,137.52,137.5,19.88096]
[1763564414805,0.67,137.52,137.5,18.12096]
[1763564415512,5.42520209,137.51,137.47,1.76]
[1763564415726,9.98882769,137.54,137.5,10.23464416]
[1763564416007,9.98882769,137.54,137.5,11.99464416]
[1763564416008,6.09563209,137.53,137.5,11.99464416]
[1763564416314,0.67,137.53,137.5,1.76]
[1763564416518,0.67,137.52,137.5,1.76]
[1763564417237,5.42521525,137.51,137.47,18.12096]
[1763564417409,10.90464416,137.52,137.48,11.99464416]
[1763564417604,0.87,137.54,137.5,28.35560416]
[1763564417809,5.42512404,137.53,137.5,28.35560416]
[1763564418029,0.2,137.54,137.52,10.23464416]
[1763564418243,0.2,137.54,137.53,10.23464416]
[1763564418434,0.2,137.54,137.52,28.35560416]
[1763564419300,0.87,137.54,137.52,18.12096]
[1763564419610,11.10464416,137.54,137.52,18.12096]
[1763564419817,0.2,137.54,137.52,18.12096]
[1763564420015,0.88,137.54,137.52,18.12096]
[1763564421500,0.2,137.54,137.52,18.12096]
[1763564421704,0.2,137.54,137.53,10.23464416]
[1763564422242,0.2,137.54,137.52,18.12096]
[1763564422450,0.2,137.54,137.52,30.09560416]
[1763564423407,0.2,137.54,137.53,10.23464416]
[1763564423941,0.2,137.54,137.53,17.725785]
[1763564424443,0.2,137.55,137.53,17.725785]
[1763564424644,0.2,137.55,137.54,10.25464416]
[1763564424808,0.2,137.55,137.54,20.04347185]
[1763564425010,0.2,137.55,137.54,1.76]
[1763564425361,0.2,137.55,137.54,11.99464416]
[1763564425814,0.2,137.55,137.54,19.26525634]
[1763564426012,0.2,137.55,137.54,29.78114524]
[1763564426213,0.2,137.55,137.54,22.51053306]
[1763564426410,0.2,137.55,137.54,11.97464416]
[1763564426610,0.2,137.55,137.54,10.23464416]
[1763564426812,0.2,137.55,137.53,10.23464416]
[1763564427038,0.2,137.55,137.54,11.97464416]
[1763564427536,0.2,137.55,137.54,30.09560416]
[1763564427736,0.85,137.55,137.54,19.86096]
[1763564427945,0.2,137.55,137.54,19.86096]
[1763564428244,0.18,137.55,137.54,37.38621634]
[1763564428420,0.1,137.62,137.57,18.12096]
[1763564428736,0.1,137.62,137.61,10.23464416]
[1763564428948,0.1,137.62,137.61,11.97464416]
[1763564429661,0.1,137.62,137.61,21.76347185]
[1763564429955,0.1,137.62,137.61,29.03038559]
[1763564430754,0.1,137.62,137.61,19.86096]
[1763564430957,0.1,137.62,137.61,18.12096]
[1763564431120,0.1,137.62,137.61,30.09560416]
[1763564431461,0.1,137.62,137.58,0.72684983]
[1763564431462,0.75,137.62,137.58,10.23464416]
[1763564431740,0.75,137.62,137.61,18.12096]
[1763564432041,16.3813264,137.62,137.58,1.74]
[1763564432361,0.1,137.62,137.61,10.23464416]
[1763564432522,0.1,137.64,137.63,18.12096]
[1763564432869,0.2,137.67,137.63,22.46928831]
[1763564433027,0.2,137.67,137.66,20.02347185]
[1763564433212,0.2,137.67,137.66,10.23464416]
[1763564433411,0.2,137.67,137.66,1.74]
[1763564433642,0.2,137.67,137.66,11.97464416]
[1763564433840,0.2,137.67,137.66,29.02774614]
[1763564434248,0.1,137.71,137.7,18.12096]
[1763564434539,0.1,137.71,137.7,39.88443185]
[1763564434917,0.1,137.71,137.7,27.90978769]
[1763564435116,0.1,137.71,137.7,39.88443185]
[1763564435617,0.1,137.78,137.74,18.12096]
[1763564435872,0.1,137.78,137.77,45.40290611]
[1763564436021,0.1,137.78,137.77,47.14290611]
[1763564436542,0.1,137.78,137.77,39.88443185]
[1763564436753,0.1,137.78,137.77,38.14443185]
[1763564436955,0.1,137.78,137.77,47.14290611]
[1763564437140,0.1,137.78,137.77,36.90826195]
[1763564437339,0.1,137.78,137.77,47.14290611]
[1763564437943,0.65,137.86,137.78,9.78882769]
[1763564438236,0.65,137.9,137.79,21.76347185]
[1763564438437,0.65,137.9,137.83,27.90978769]
[1763564438663,10.88464416,137.9,137.83,27.90978769]
[1763564438884,10.23464416,137.86,137.81,10.23464416]
[1763564439034,0.7,137.85,137.84,18.12096]
[1763564440368,0.7,137.85,137.82,30.09560416]
[1763564440732,0.7,137.85,137.82,19.86096]
[1763564440932,0.7,137.85,137.82,30.09560416]
[1763564441145,0.7,137.85,137.81,10.23464416]
[1763564441465,10.93464416,137.85,137.82,1.74]
[1763564441756,0.7,137.85,137.83,18.12096]
[1763564441960,0.7,137.84,137.83,18.12096]
[1763564443139,10.93464416,137.84,137.82,1.74]
[1763564443454,10.23464416,137.83,137.74,0.72600551]
[1763564443640,0.7,137.83,137.76,1.74]
[1763564443952,10.23464416,137.8,137.76,1.74]
[1763564444140,10.23464416,137.81,137.76,1.74]
[1763564444346,10.93464416,137.81,137.76,1.74]
[1763564444554,0.7,137.8,137.76,11.97464416]
[1763564444935,0.7,137.8,137.76,1.74]
[1763564445136,0.7,137.8,137.79,18.12096]
[1763564445362,0.7,137.8,137.76,1.74]
[1763564445363,10.93464416,137.8,137.76,1.74]
[1763564445656,10.93464416,137.8,137.78,18.12096]
[1763564445834,0.7,137.79,137.78,18.12096]
[1763564446036,0.7,137.79,137.72,0.71]
[1763564446037,10.93464416,137.79,137.72,9.78882769]
[1763564446229,10.93464416,137.79,137.73,1.74]
[1763564446434,0.7,137.78,137.77,18.12096]
[1763564446847,4.76046391,137.82,137.77,18.12096]
[1763564447057,10.93464416,137.81,137.77,18.12096]
[1763564447464,10.93464416,137.81,137.76,1.74]
[1763564447465,6.10870782,137.86,137.78,10.23464416]
[1763564447666,0.7,137.86,137.82,10.23464416]
[1763564447891,0.7,137.86,137.85,18.12096]
[1763564448438,0.7,137.86,137.83,10.23464416]
[1763564448682,10.93464416,137.86,137.82,1.74]
[1763564448840,0.7,137.86,137.82,1.74]
[1763564449182,0.7,137.85,137.82,1.74]
[1763564449342,0.7,137.85,137.83,18.12096]
[1763564449542,10.93464416,137.88,137.83,28.35560416]
[1763564449753,0.71,137.87,137.83,28.35560416]
[1763564450261,10.94464416,137.89,137.84,10.23464416]
[1763564450567,10.23464416,137.9,137.85,11.97464416]
[1763564450869,0.71,137.9,137.87,10.23464416]
[1763564451058,10.33464416,137.92,137.85,3.16542618]
[1763564451263,0.71,137.9,137.87,10.23464416]
[1763564451572,0.71,137.9,137.86,10.23464416]
[1763564451965,0.1,137.92,137.89,10.23464416]
[1763564452280,0.1,137.92,137.91,10.23464416]
[1763564452646,0.1,137.92,137.9,1.74]
[1763564452854,0.1,137.92,137.87,18.12096]
[1763564452855,0.81,137.92,137.87,18.82096]
[1763564453058,0.1,137.92,137.89,9.78882769]
[1763564453256,0.1,137.92,137.88,2.44]
[1763564453257,0.1,137.92,137.91,10.23464416]
[1763564453471,0.1,137.92,137.91,11.97464416]
[1763564453674,0.1,137.92,137.91,1.74]
[1763564454368,0.1,137.92,137.91,11.97464416]
[1763564454961,0.1,137.92,137.91,22.46347185]
[1763564455868,0.1,137.92,137.91,21.76347185]
[1763564456072,0.1,137.92,137.91,22.46347185]
[1763564456484,0.1,137.92,137.91,19.86096]
[1763564456667,0.1,137.92,137.91,40.58443185]
[1763564457169,0.1,137.92,137.91,47.13553764]
[1763564457346,0.1,137.92,137.91,47.83553764]
[1763564457759,0.1,137.92,137.91,47.13553764]
[1763564458075,0.1,137.92,137.91,37.34670995]
[1763564458253,0.1,137.92,137.91,30.09560416]
[1763564458643,0.1,137.92,137.91,36.90089348]
[1763564458953,0.1,137.92,137.91,40.58443185]
[1763564459266,0.1,137.92,137.91,30.34978769]
[1763564459453,0.1,137.92,137.91,40.58443185]
[1763564460170,0.1,137.92,137.91,28.35560416]
[1763564460468,0.81,137.92,137.91,1.74]
[1763564460671,0.81,137.92,137.85,0.7]
[1763564460672,0.81,137.92,137.89,10.23464416]
[1763564460968,0.81,137.92,137.87,11.97464416]
[1763564460969,11.04464416,137.92,137.87,11.97464416]
[1763564461145,0.1,137.92,137.91,10.23464416]
[1763564461343,0.1,137.92,137.91,11.97464416]
[1763564461577,0.1,137.92,137.91,12.67464416]
[1763564461948,0.1,137.92,137.91,22.46347185]
[1763564462277,0.1,137.92,137.91,19.86096]
[1763564462471,0.1,137.92,137.91,30.09560416]
[1763564462642,0.1,137.92,137.89,18.12096]
[1763564462844,0.1,137.92,137.9,7.82983976]
[1763564463047,0.1,137.92,137.91,6.08983976]
[1763564463346,0.1,137.92,137.91,6.78983976]
[1763564463673,9.24385888,138.05,137.91,6.78983976]
[1763564463674,0.1,138.06,137.95,18.12096]
[1763564463854,0.71,138.03,138.01,6.08983976]
[1763564464048,0.71,138.03,138.02,1.74]
[1763564464262,0.71,138.03,138.0,1.74]
[1763564464661,6.08983976,138.02,137.98,1.74]
[1763564464874,6.08983976,138.01,137.96,6.08983976]
[1763564465059,6.08983976,138.01,137.97,1.74]
[1763564465377,0.71,138.0,137.97,7.82983976]
[1763564465572,0.71,138.01,137.97,1.74]
[1763564465872,0.71,138.01,137.98,6.08983976]
[1763564466254,6.79983976,138.01,137.97,1.74]
[1763564466453,0.71,138.01,137.96,1.74]
[1763564466648,0.71,138.0,137.96,7.82983976]
[1763564466943,6.08983976,138.01,137.99,6.08983976]
[1763564466944,0.71,138.01,137.99,6.08983976]
[1763564467148,0.71,138.01,137.99,7.82983976]
[1763564467747,0.71,138.01,137.99,1.74]
[1763564468153,0.1,138.06,138.04,18.12096]
[1763564468357,0.1,138.06,138.05,7.82983976]
[1763564468766,0.1,138.06,138.05,17.61866745]
[1763564469377,0.1,138.06,138.05,18.23866745]
[1763564469686,0.71,138.18,138.09,9.78882769]
[1763564469867,0.71,138.2,138.13,18.12096]
[1763564470069,0.71,138.2,138.14,1.74]
[1763564470258,0.71,138.2,138.16,6.08983976]
[1763564470462,0.71,138.2,138.18,6.08983976]
[1763564470674,1.99999999,138.29,138.19,6.08983976]
[1763564470884,8.0446387,138.33,138.21,6.08983976]
[1763564470885,0.71,138.23,138.21,6.08983976]
[1763564471191,5.5246695,138.32,138.22,6.08983976]
[1763564471192,0.71,138.32,138.22,6.08983976]
[1763564471479,0.71,138.31,138.19,9.78882769]
[1763564471661,0.71,138.31,138.18,27.90978769]
[1763564471662,6.08983976,138.28,138.23,6.08983976]
[1763564471861,0.71,138.31,138.25,6.08983976]
[1763564472258,0.71,138.31,138.24,1.76]
[1763564472855,6.08983976,138.3,138.24,1.76]
[1763564473068,0.71,138.31,138.24,1.76]
[1763564473275,0.71,138.31,138.26,6.08983976]
[1763564473480,0.71,138.31,138.27,6.08983976]
[1763564473653,0.71,138.31,138.24,8.99377155]
[1763564473654,0.71,138.31,138.28,6.08983976]
[1763564473856,0.71,138.31,138.28,1.76]
[1763564474076,0.71,138.31,138.23,27.90978769]
[1763564474077,0.71,138.31,138.26,6.08983976]
[1763564474296,0.71,138.31,138.27,6.08983976]
[1763564474483,1.93593088,138.33,138.27,0.62]
[1763564474688,0.71,138.32,138.25,1.76]
[1763564475408,6.08983976,138.31,138.25,7.84983976]
[1763564475614,0.71,138.32,138.26,6.08983976]
[1763564475894,0.71,138.31,138.25,7.84983976]
[1763564476099,0.71,138.31,138.25,1.76]
[1763564476268,0.71,138.31,138.26,6.08983976]
[1763564476468,6.79983976,138.31,138.26,6.08983976]
[1763564476667,0.71,138.31,138.26,6.08983976]
[1763564476903,0.71,138.3,138.26,6.08983976]
[1763564477512,0.71,138.3,138.25,1.76]
[1763564477714,2.64593088,138.33,138.29,6.08983976]
[1763564478007,2.64593088,138.33,138.25,2.38]
[1763564478008,0.71,138.32,138.25,1.76]
[1763564478190,0.71,138.32,138.3,6.08983976]
[1763564478500,1.93593088,138.33,138.31,6.08983976]
[1763564478672,1.93593088,138.33,138.26,18.74096]
[1763564478673,1.93593088,138.33,138.29,1.76]
[1763564478880,0.71,138.32,138.26,0.62]
[1763564479190,0.71,138.32,138.29,6.08983976]
[1763564480180,0.71,138.32,138.26,19.88096]
[1763564480376,0.71,138.32,138.26,1.76]
[1763564480377,6.08983976,138.31,138.26,1.76]
[1763564480597,6.08983976,138.31,138.26,6.08983976]
[1763564480884,6.08983976,138.29,138.24,6.08983976]
[1763564481097,0.68,138.28,138.23,1.76]
[1763564481303,1.93593088,138.33,138.27,6.08983976]
[1763564481474,2.61593088,138.33,138.26,18.74096]
[1763564481681,2.61593088,138.33,138.29,6.08983976]
[1763564481886,1.93593088,138.33,138.3,6.08983976]
[1763564482318,2.61593088,138.33,138.27,9.61182528]
[1763564482489,1.93593088,138.33,138.3,6.08983976]
[1763564482703,8.02577064,138.33,138.27,1.76]
[1763564483006,1.93593088,138.33,138.31,6.08983976]
[1763564483207,1.93593088,138.33,138.29,6.08983976]
[1763564483403,1.93593088,138.33,138.27,2.48322268]
[1763564483404,6.08983976,138.31,138.26,6.08983976]
[1763564483594,6.08983976,138.31,138.22,17.64367069]
[1763564483595,6.08983976,138.31,138.25,6.08983976]
[1763564483788,0.68,138.3,138.26,6.08983976]
[1763564484218,0.68,138.3,138.27,6.08983976]
[1763564484515,0.68,138.3,138.28,6.08983976]
[1763564484714,2.63593088,138.33,138.28,6.08983976]
[1763564484885,0.7,138.32,138.25,0.62]
[1763564485213,6.78983976,138.32,138.26,6.08983976]
[1763564485737,6.78983976,138.31,138.21,12.27236433]
[1763564486020,6.78983976,138.31,138.24,6.08983976]
[1763564486021,6.08983976,138.3,138.24,6.08983976]
[1763564486210,0.7,138.3,138.25,6.08983976]
[1763564486430,0.7,138.29,138.26,6.08983976]
[1763564486715,1.93593088,138.33,138.28,6.08983976]
[1763564486897,1.93593088,138.33,138.31,6.08983976]
[1763564487211,2.63593088,138.33,138.29,6.08983976]
[1763564487926,0.7,138.32,138.26,6.08983976]
[1763564488115,0.7,138.32,138.28,6.08983976]
[1763564488308,0.7,138.32,138.25,25.97397818]
[1763564488309,1.93593088,138.33,138.29,6.08983976]
[1763564488512,1.93593088,138.33,138.3,6.08983976]
[1763564488690,0.7,138.32,138.28,6.08983976]
[1763564489026,1.93593088,138.33,138.3,6.08983976]
[1763564489225,1.93593088,138.33,138.32,6.08983976]
[1763564489394,1.31593088,138.33,138.32,17.63866745]
[1763564489589,0.7,138.41,138.32,17.63866745]
[1763564489912,0.7,138.41,138.36,6.08983976]
[1763564490303,6.08983976,138.4,138.34,6.08983976]
[1763564490817,0.7,138.39,138.34,6.08983976]
[1763564491195,0.7,138.39,138.31,0.72301352]
[1763564491398,0.7,138.39,138.34,6.08983976]
[1763564491613,6.78983976,138.39,138.33,6.08983976]
[1763564491923,6.78983976,138.39,138.3,2.48306579]
[1763564492119,0.7,138.38,138.3,0.72306579]
[1763564492306,18.12096,138.37,138.32,6.08983976]
[1763564492794,0.7,138.36,138.31,6.08983976]
[1763564492994,6.08983976,138.32,138.26,6.08983976]
[1763564493189,6.08983976,138.31,138.25,6.08983976]
[1763564493623,0.7,138.3,138.25,6.08983976]
[1763564493805,0.7,138.3,138.21,1.76]
[1763564493806,0.7,138.3,138.27,6.08983976]
[1763564494419,0.7,138.3,138.26,6.08983976]
[1763564495104,6.08983976,138.32,138.26,6.08983976]
[1763564495105,0.7,138.34,138.29,6.08983976]
[1763564495308,6.78983976,138.34,138.28,6.08983976]
[1763564495605,6.78983976,138.34,138.26,1.76]
[1763564495606,6.08983976,138.31,138.26,1.76]
[1763564495807,6.08983976,138.31,138.26,7.84983976]
[1763564496109,0.7,138.3,138.26,7.84983976]
[1763564496693,6.08983976,138.29,138.26,1.76]
[1763564496893,0.7,138.28,138.24,6.08983976]
[1763564497806,6.08983976,138.25,138.17,21.97536584]
[1763564498005,6.78983976,138.24,138.18,6.08983976]
[1763564498223,6.08983976,138.22,138.15,1.76]
[1763564498399,6.08983976,138.22,138.17,6.08983976]
[1763564498603,0.7,138.21,138.17,6.08983976]
[1763564498799,6.08983976,138.19,138.15,1.76]
[1763564499097,0.7,138.21,138.13,6.08983976]
[1763564499098,6.08983976,138.18,138.13,6.08983976]
[1763564499502,0.7,138.17,138.14,6.08983976]
[1763564499928,6.78983976,138.17,138.11,1.76]
[1763564500110,6.08983976,138.15,138.11,1.76]
[1763564500726,15.87866745,138.2,138.05,18.10849172]
[1763564500727,6.08983976,138.12,138.05,1.76]
[1763564500919,6.08983976,138.1,138.05,7.84983976]
[1763564501117,6.08983976,138.09,138.05,1.76]
[1763564501307,6.08983976,138.06,138.01,6.08983976]
[1763564501512,6.08983976,138.06,138.0,6.08983976]
[1763564501718,0.7,138.05,138.01,6.08983976]
[1763564502230,6.78983976,138.05,137.98,1.76]
[1763564502529,6.08983976,138.02,137.98,7.84983976]
[1763564502826,6.08983976,138.02,137.98,1.76]
[1763564503027,0.7,138.01,137.97,6.08983976]
[1763564503547,0.7,138.05,138.0,6.08983976]
[1763564503830,6.78983976,138.04,137.99,6.08983976]
[1763564504130,0.7,138.04,138.0,6.08983976]
[1763564504628,0.7,138.04,138.01,6.08983976]
[1763564504921,6.78983976,138.07,138.01,6.08983976]
[1763564505325,18.12096,138.08,138.01,6.08983976]
[1763564505326,6.78983976,138.06,138.01,6.08983976]
[1763564505512,6.08983976,138.05,138.01,6.08983976]
[1763564505829,0.7,138.06,138.02,6.08983976]
[1763564506036,6.08983976,138.03,137.99,1.76]
[1763564506339,6.08983976,138.04,137.99,7.84983976]
[1763564506512,0.7,138.03,137.99,7.84983976]
[1763564506833,6.78983976,138.03,137.99,1.76]
[1763564507035,0.7,138.09,138.02,6.08983976]
[1763564507339,0.7,138.11,138.06,6.08983976]
[1763564507506,0.7,138.11,138.07,6.08983976]
[1763564508022,0.7,138.11,138.04,18.12096]
[1763564508222,0.7,138.11,138.07,6.08983976]
[1763564508423,0.7,138.11,138.07,13.33250546]
[1763564508627,0.7,138.11,138.06,6.08983976]
[1763564508837,6.08983976,138.09,138.03,1.76]
[1763564509144,0.7,138.11,138.06,6.08983976]
[1763564509145,6.78983976,138.11,138.06,6.08983976]
[1763564509602,0.66,138.1,138.03,9.00467901]
[1763564509802,0.66,138.1,138.07,6.08983976]
[1763564510026,0.66,138.1,138.03,27.11668364]
[1763564510238,0.66,138.1,138.05,6.08983976]
[1763564510448,0.66,138.1,138.04,0.7244277]
[1763564510449,6.08983976,138.09,138.04,6.08983976]
[1763564510901,0.66,138.08,138.05,6.08983976]
[1763564511507,0.66,138.08,138.04,6.08983976]
[1763564511728,0.66,138.08,138.05,6.08983976]
[1763564511934,6.74983976,138.08,138.03,7.84983976]
[1763564512222,6.08983976,138.07,138.03,1.76]
[1763564512419,6.74983976,138.07,138.02,6.08983976]
[1763564512619,0.66,138.06,138.03,6.08983976]
[1763564513042,0.66,138.06,138.0,1.76]
[1763564513244,6.74983976,138.09,138.04,6.08983976]
[1763564513749,0.66,138.08,138.04,6.08983976]
[1763564514433,0.66,138.08,138.03,6.08983976]
[1763564515160,0.66,138.08,138.04,6.08983976]
[1763564515342,0.66,138.08,138.03,6.08983976]
[1763564515526,0.66,138.08,138.01,26.08485398]
[1763564515849,6.08983976,138.07,138.0,1.76]
[1763564516257,0.66,138.06,138.02,6.08983976]
[1763564516925,0.66,138.06,138.0,9.00622869]
[1763564516926,0.66,138.06,138.03,6.08983976]
[1763564517246,6.74983976,138.09,138.04,6.08983976]
[1763564517441,6.74983976,138.08,138.03,6.08983976]
[1763564517620,0.66,138.07,138.04,6.08983976]
[1763564517822,0.66,138.07,138.03,6.08983976]
[1763564518061,0.66,138.11,138.05,6.08983976]
[1763564518225,0.66,138.1,138.06,6.08983976]
[1763564518549,6.08983976,138.09,138.04,1.76]
[1763564518730,0.66,138.08,138.04,1.76]
[1763564519546,0.66,138.08,138.04,7.84983976]
[1763564519749,0.66,138.08,138.04,1.76]
[1763564519942,0.66,138.08,138.04,7.84983976]
[1763564520140,0.66,138.08,138.04,1.76]
[1763564520455,0.66,138.14,138.07,6.08983976]
[1763564520655,6.10870782,138.18,138.13,6.08983976]
[1763564520656,0.66,138.18,138.13,6.08983976]
[1763564520963,6.08983976,138.22,138.17,6.08983976]
[1763564521165,0.66,138.2,138.13,1.76]
[1763564521371,0.66,138.2,138.17,6.08983976]
[1763564521659,0.66,138.22,138.19,6.08983976]
[1763564521830,0.66,138.22,138.17,1.76]
[1763564522153,0.66,138.22,138.17,7.84983976]
[1763564522356,6.74983976,138.22,138.17,7.84983976]
[1763564522557,6.08983976,138.2,138.17,1.76]
[1763564522866,10.14240331,138.2,138.14,11.90240331]
[1763564523047,18.12096,138.24,138.14,11.90240331]
[1763564523048,10.80240331,138.19,138.14,1.76]
[1763564523380,0.66,138.19,138.14,1.76]
[1763564523533,0.66,138.21,138.17,10.14240331]
[1763564523729,0.66,138.24,138.19,10.14240331]
[1763564523963,0.66,138.23,138.19,10.14240331]
[1763564524140,10.14240331,138.21,138.14,1.76]
[1763564524346,10.14240331,138.2,138.14,11.90240331]
[1763564524547,27.90978769,138.24,138.14,11.90240331]
[1763564524548,10.14240331,138.18,138.14,1.76]
[1763564524762,10.14240331,138.16,138.11,11.90240331]
[1763564525256,10.80240331,138.15,138.11,1.76]
[1763564525468,0.66,138.15,138.11,11.90240331]